bitfinex/quotes_SOLUSD_20250228
["timestamp","ask_amount","ask_price","bid_price","bid_amount"]
[1740782364657,114.74,147.02,146.96,86.4436]
[1740782365030,120.1815,147.02,146.96,86.4436]
[1740782365557,114.74,147.02,146.96,86.4436]
[1740782366452,114.74,147.02,146.96,92.8036]
[1740782366855,120.1814,147.02,146.96,87.36]
[1740782367840,133.7849,147.02,146.96,87.36]
[1740782368440,18.64964886,147.0,146.92,87.0219]
[1740782369341,99.34964886,147.0,146.92,87.0219]
[1740782370334,18.64964886,146.98,146.92,87.0219]
[1740782371462,18.64964886,146.98,146.92,84.5219]
[1740782371644,18.64964886,146.98,146.92,81.0]
[1740782372374,18.64964886,146.98,146.91,0.0001]
[1740782372547,19.0514,146.97,146.91,0.0001]
[1740782382584,19.1144,146.97,146.91,0.0001]
[1740782382764,19.1144,146.97,146.91,81.0001]
[1740782383851,19.1144,146.97,146.91,86.4455]
[1740782383852,5.5062,146.97,146.91,86.4455]
[1740782384170,5.5062,146.97,146.91,81.0001]
[1740782384566,5.5062,146.97,146.91,86.4455]
[1740782385674,0.063,146.97,146.91,86.4455]
[1740782386655,0.063,146.97,146.94,20.0]
[1740782386855,0.063,146.97,146.94,101.0]
[1740782387683,0.063,146.97,146.94,239.0]
[1740782387973,0.063,146.97,146.95,5.444]
[1740782388175,0.063,146.97,146.94,244.4442]
[1740782388368,0.063,146.97,146.94,239.0]
[1740782391356,0.063,146.97,146.94,244.4442]
[1740782391700,0.063,146.97,146.94,106.4442]
[1740782400200,0.063,146.97,146.94,258.0551]
[1740782400365,0.063,147.0,146.98,20.0]
[1740782400572,0.063,147.0,146.98,101.0]
[1740782401166,0.063,147.0,146.98,239.0]
[1740782401683,0.03,147.04,146.98,239.0]
[1740782402502,0.03,147.04,147.02,20.0]
[1740782402803,0.03,147.04,147.02,245.24]
[1740782403195,0.063,147.08,147.02,245.24]
[1740782404503,0.063,147.08,147.06,20.0]
[1740782404688,0.063,147.08,147.06,101.0]
[1740782406613,0.063,147.08,147.07,5.4395]
[1740782408005,6.185,147.17,147.07,251.32914886]
[1740782408198,6.185,147.17,147.1,20.0]
[1740782408392,114.66,147.18,147.1,239.0]
[1740782408613,114.66,147.18,147.1,244.40278208]
[1740782410102,114.66,147.18,147.11,5.4381]
[1740782412515,114.66,147.18,147.11,224.4381]
[1740782415811,120.0955,147.18,147.11,224.4381]
[1740782416019,114.66,147.18,147.11,224.4381]
[1740782419917,120.0955,147.18,147.11,224.4381]
[1740782420414,120.0955,147.18,147.11,230.6581]
[1740782421920,5.4651,147.19,147.11,230.6581]
[1740782424229,5.4651,147.19,147.11,225.22]
[1740782424422,19.0529,147.19,147.11,225.22]
[1740782427722,19.0529,147.19,147.11,230.6581]
[1740782431816,5.4651,147.19,147.11,230.6581]
[1740782441206,0.03,147.19,147.11,230.6581]
[1740782444938,20.67964886,147.19,147.11,219.0]
[1740782445125,6.0949,147.14,147.09,84.35638087]
[1740782445313,1.5936,147.12,147.09,81.0]
[1740782445511,1.5936,147.12,147.08,0.063]
[1740782446129,18.64964886,147.08,147.01,81.0]
[1740782446314,99.34964886,147.08,147.01,81.0]
[1740782446818,5.4395,147.07,147.01,81.0]
[1740782449824,104.78884886,147.08,147.01,81.0]
[1740782450436,1.5306,147.09,147.01,86.4415]
[1740782450950,1.5306,147.09,147.04,20.0]
[1740782451117,1.5306,147.09,147.04,101.0]
[1740782451424,6.0959,147.1,147.04,101.0]
[1740782451632,6.0959,147.1,147.04,239.0]
[1740782452136,6.0959,147.1,147.05,5.4403]
[1740782453009,6.1259,147.1,147.05,5.4403]
[1740782454833,0.03,147.1,147.05,5.4403]
[1740782455333,0.03,147.1,147.05,19.0411]
[1740782456839,0.03,147.1,147.05,100.0411]
[1740782457041,0.03,147.1,147.08,20.0]
[1740782457248,0.03,147.1,147.08,101.0]
[1740782458259,0.03,147.1,147.09,5.4388]
[1740782462125,0.03,147.1,147.09,86.4388]
[1740782462558,0.063,147.12,147.11,20.0]
[1740782462849,0.063,147.12,147.11,244.4381]
[1740782463228,0.0001,147.12,147.11,244.4381]
[1740782463619,0.0001,147.12,147.11,263.08774886]
[1740782463923,0.0001,147.12,147.11,267.08774886]
[1740782467327,0.0001,147.12,147.11,287.58774886]
[1740782467934,0.03,147.19,147.15,20.0]
[1740782468154,0.03,147.19,147.18,20.0]
[1740782468447,0.03,147.19,147.18,239.0]
[1740782469421,0.03,147.19,147.18,244.4355]
[1740782470141,0.03,147.19,147.18,239.0]
[1740782470537,0.03,147.19,147.18,242.45600162]
[1740782471661,0.03,147.19,147.18,239.0]
[1740782472146,0.03,147.19,147.15,81.0]
[1740782472459,6.1439,147.18,147.11,81.0]
[1740782472643,99.34964886,147.17,147.09,81.0]
[1740782472950,103.34964886,147.17,147.09,81.0]
[1740782473162,22.21284886,147.15,147.09,81.0]
[1740782473474,5.4377,147.12,147.03,225.22]
[1740782473641,5.4377,147.12,147.03,87.22]
[1740782473968,19.032,147.12,147.03,87.22]
[1740782474129,5.4377,147.12,147.03,87.22]
[1740782474331,5.4377,147.12,147.05,3.45303498]
[1740782474534,5.4377,147.12,147.05,84.45303498]
[1740782475257,6.1439,147.1,147.05,81.0]
[1740782480360,80.73,147.12,147.05,86.4402]
[1740782480554,80.73,147.12,147.08,20.0]
[1740782480748,0.03,147.12,147.08,101.0]
[1740782480955,0.03,147.12,147.08,239.0]
[1740782482163,7.7901,147.19,147.16,20.0]
[1740782482164,0.03,147.19,147.16,20.0]
[1740782482345,0.06069265,147.2,147.16,239.0]
[1740782482662,0.06069265,147.2,147.18,5.42094919]
[1740782482851,9.265e-05,147.2,147.19,24.86964886]
[1740782483049,9.265e-05,147.2,147.19,245.29567571]
[1740782483375,9.265e-05,147.22,147.21,22.0]
[1740782483661,9.265e-05,147.22,147.21,7.54081091]
[1740782484073,9.265e-05,147.22,147.21,12.97521091]
[1740782484285,9.265e-05,147.22,147.21,14.40088311]
[1740782486165,9.265e-05,147.22,147.21,12.40088311]
[1740782486470,9.265e-05,147.22,147.21,10.97521091]
[1740782486872,9.265e-05,147.22,147.21,229.97521091]
[1740782487553,9.265e-05,147.22,147.21,224.54081091]
[1740782487869,9.265e-05,147.22,147.21,219.0]
[1740782488171,9.265e-05,147.22,147.21,224.4344]
[1740782488368,9.265e-05,147.22,147.21,219.0]
[1740782488566,9.265e-05,147.22,147.21,224.4344]
[1740782491655,9.265e-05,147.22,147.21,245.08404886]
[1740782491856,9.265e-05,147.22,147.21,247.08404886]
[1740782492051,0.03,147.27,147.25,20.0]
[1740782492277,0.03,147.31,147.29,20.0]
[1740782492480,0.03,147.31,147.29,101.0]
[1740782497673,0.03,147.31,147.29,106.4313]
[1740782498492,0.03,147.31,147.29,244.4313]
[1740782501288,0.03,147.31,147.3,22.07491384]
[1740782501465,0.0001,147.32,147.31,22.64964886]
[1740782501665,0.0001,147.32,147.31,247.84964886]
[1740782502284,0.063,147.4,147.37,2.0]
[1740782502485,0.063,147.4,147.38,18.64964886]
[1740782502786,0.063,147.4,147.38,237.64964886]
[1740782503168,0.063,147.4,147.38,239.64964886]
[1740782503484,0.063,147.4,147.38,81.0]
[1740782503665,0.063,147.4,147.38,222.48224137]
[1740782504401,0.063,147.4,147.39,26.07734886]
[1740782505982,0.063,147.4,147.39,27.501207]
[1740782506186,0.063,147.4,147.39,246.501207]
[1740782506376,0.063,147.4,147.39,247.07734886]
[1740782509191,0.063,147.4,147.39,252.45506731]
[1740782512973,0.063,147.42,147.4,20.64964886]
[1740782513173,0.063,147.42,147.4,26.07704886]
[1740782514299,0.063,147.42,147.4,27.50082631]
[1740782514494,0.063,147.42,147.4,267.00082631]
[1740782514708,0.063,147.42,147.4,265.57704886]
[1740782515078,0.063,147.42,147.4,306.58704886]
[1740782515787,0.0001,147.41,147.4,306.58704886]
[1740782516105,7.0184,147.52,147.44,20.0]
[1740782516300,7.0184,147.52,147.45,6.22]
[1740782516805,5.4223,147.54,147.48,20.0]
[1740782517004,11.5486,147.55,147.48,239.0]
[1740782517207,6.1266,147.55,147.48,241.0]
[1740782517398,0.03,147.55,147.48,241.0]
[1740782517926,5.1266,147.59,147.53,5.4226]
[1740782518093,1.557,147.6,147.53,5.4226]
[1740782518094,1.557,147.6,147.54,6.24]
[1740782518292,6.9756,147.64,147.57,20.0]
[1740782518493,1.557,147.64,147.57,20.0]
[1740782519427,25.4179,147.66,147.59,3.38716769]
[1740782519717,5.4175,147.67,147.59,9.64716769]
[1740782519923,6.9741,147.68,147.59,15.06736769]
[1740782520089,5.4171,147.68,147.59,15.06736769]
[1740782520289,101.49258104,147.72,147.64,18.64964886]
[1740782520290,1.557,147.72,147.64,18.64964886]
[1740782520506,1.557,147.72,147.65,6.26]
[1740782520712,5.4149,147.74,147.65,6.26]
[1740782520909,115.8711,147.77,147.69,20.0]
[1740782520910,6.1371,147.76,147.69,20.0]
[1740782521108,2.0,147.8,147.7,6.28]
[1740782521287,7.4127,147.8,147.71,6.28]
[1740782521492,7.4127,147.8,147.72,18.64964886]
[1740782521791,5.4127,147.8,147.73,6.28]
[1740782522005,7.4127,147.8,147.73,6.28]
[1740782522316,7.4127,147.8,147.74,6.28]
[1740782522508,5.4127,147.8,147.74,6.28]
[1740782522709,6.1371,147.81,147.74,6.28]
[1740782522710,11.5794,147.81,147.74,6.28]
[1740782523112,0.03,147.81,147.74,6.28]
[1740782523589,0.03,147.81,147.75,18.64964886]
[1740782524288,0.03,147.81,147.78,20.0]
[1740782524493,0.03,147.81,147.79,6.28]
[1740782525798,0.03,147.81,147.77,22.120702]
[1740782526012,0.03,147.81,147.78,6.3]
[1740782526217,0.03,147.81,147.8,18.64964886]
[1740782526404,0.03,147.81,147.8,38.64964886]
[1740782526605,0.03,147.81,147.8,20.0]
[1740782527400,0.03,147.81,147.77,9.79105314]
[1740782527616,0.03,147.81,147.76,6.32]
[1740782527814,18.67964886,147.81,147.7,6.32]
[1740782527994,20.67964886,147.81,147.66,5.4178]
[1740782528322,20.67964886,147.81,147.65,9.78752258]
[1740782528323,20.0,147.76,147.67,6.34]
[1740782528500,20.0,147.76,147.65,6.3666]
[1740782528501,6.34,147.78,147.65,6.34]
[1740782528902,6.34,147.78,147.66,18.64964886]
[1740782529120,6.34,147.78,147.69,20.0]
[1740782529428,5.4138,147.77,147.66,5.4176]
[1740782529799,5.4138,147.77,147.69,20.0]
[1740782530000,18.64964886,147.76,147.65,6.34]
[1740782530319,18.64964886,147.74,147.65,6.36]
[1740782530503,18.64964886,147.72,147.63,6.36]
[1740782530699,29.02354886,147.72,147.58,5.4207]
[1740782531022,2.0,147.68,147.59,6.36]
[1740782531396,5.4174,147.67,147.59,6.36]
[1740782532018,5.4174,147.67,147.59,9.80132053]
[1740782532325,18.64964886,147.66,147.57,219.0]
[1740782532505,20.0,147.63,147.57,219.0]
[1740782532820,94.4772,147.68,147.57,224.4211]
[1740782533021,20.0,147.65,147.57,224.4211]
[1740782533208,11.7772,147.68,147.57,224.4211]
[1740782534913,18.64964886,147.67,147.59,0.063]
[1740782535103,20.0,147.64,147.59,0.063]
[1740782535417,20.64964886,147.63,147.59,0.063]
[1740782536023,20.64964886,147.63,147.49,219.0]
[1740782536024,2.0,147.59,147.49,219.0]
[1740782536325,2.0,147.59,147.44,224.4888]
[1740782536326,20.64964886,147.56,147.44,224.4888]
[1740782536506,18.64964886,147.53,147.44,0.063]
[1740782536830,25.02964886,147.53,147.45,20.0]
[1740782537126,20.0,147.57,147.46,6.4]
[1740782537323,20.0,147.57,147.46,225.4]
[1740782537526,20.0,147.57,147.47,18.64964886]
[1740782537823,2.0,147.59,147.47,237.64964886]
[1740782538018,2.0,147.59,147.5,20.0]
[1740782538326,2.0,147.59,147.5,239.0]
[1740782538528,5.42,147.6,147.51,6.4]
[1740782538928,115.7605,147.61,147.52,5.4229]
[1740782539106,114.16,147.61,147.55,20.0]
[1740782539314,6.3739,147.65,147.55,239.0]
[1740782539630,13.418,147.67,147.56,6.4]
[1740782540126,18.64964886,147.66,147.56,6.4]
[1740782541433,5.4182,147.65,147.57,5.4211]
[1740782541632,5.4182,147.65,147.57,224.4211]
[1740782542332,18.64964886,147.66,147.57,224.4211]
[1740782542635,5.4156,147.72,147.62,20.0]
[1740782542939,5.4156,147.72,147.62,6.4]
[1740782543142,18.64964886,147.71,147.62,6.4]
[1740782543444,25.4174,147.68,147.6,81.0]
[1740782544242,25.4174,147.68,147.6,86.4199]
[1740782545226,25.4174,147.68,147.6,81.0]
[1740782546344,20.64964886,147.67,147.6,81.0]
[1740782546649,20.0,147.63,147.55,219.0]
[1740782546818,20.0,147.63,147.55,81.0]
[1740782547319,18.64964886,147.6,147.52,81.0]
[1740782547518,13.5528,147.57,147.52,81.0]
[1740782548025,15.5528,147.57,147.49,81.0]
[1740782548240,18.64964886,147.56,147.45,219.0]
[1740782548537,2.0,147.56,147.45,224.4255]
[1740782548935,20.0,147.54,147.45,224.4255]
[1740782549136,20.0,147.54,147.45,81.0]
[1740782549517,5.4229,147.52,147.45,219.0]
[1740782551246,20.0,147.54,147.45,219.0]
[1740782551548,20.0,147.54,147.45,224.4252]
[1740782551926,114.18,147.55,147.46,18.64964886]
[1740782552120,114.18,147.55,147.47,6.46]
[1740782552942,114.18,147.55,147.47,26.96]
[1740782553145,7.4204,147.6,147.49,18.64964886]
[1740782553353,7.4204,147.6,147.48,18.64964886]
[1740782553522,2.0,147.6,147.48,20.64964886]
[1740782553841,2.0,147.6,147.49,18.9842]
[1740782554442,2.0,147.6,147.49,237.9842]
[1740782554855,11.6301,147.61,147.49,237.9842]
[1740782555429,11.6301,147.61,147.52,20.0]
[1740782555735,6.2104,147.61,147.52,245.5]
[1740782556041,86.1193,147.62,147.52,245.5]
[1740782556042,126.1389,147.64,147.52,245.5]
[1740782556230,119.6389,147.64,147.52,245.5]
[1740782556730,114.22,147.64,147.53,37.62874886]
[1740782557233,114.22,147.64,147.53,39.05129964]
[1740782557434,114.22,147.64,147.56,20.0]
[1740782557737,114.22,147.64,147.56,239.0]
[1740782557938,1.6016,147.65,147.56,239.0]
[1740782558241,20.25124886,147.65,147.57,11.9011]
[1740782559843,11.6283,147.66,147.57,230.9011]
[1740782560041,18.64964886,147.65,147.57,230.9011]
[1740782560727,99.34964886,147.65,147.57,87.48]
[1740782560929,20.0,147.6,147.53,81.0]
[1740782561144,18.64964886,147.58,147.5,81.0]
[1740782561649,37.62224886,147.58,147.5,81.0]
[1740782562140,39.62224886,147.58,147.5,81.0]
[1740782562446,37.62224886,147.58,147.5,81.0]
[1740782563533,18.64964886,147.56,147.47,81.0]
[1740782563731,18.64964886,147.56,147.44,13.6274]
[1740782563732,22.64964886,147.54,147.44,219.063]
[1740782563925,18.64964886,147.52,147.44,81.063]
[1740782564243,18.64964886,147.5,147.44,0.063]
[1740782564452,20.64964886,147.5,147.44,0.063]
[1740782565641,87.2,147.51,147.44,0.063]
[1740782565849,8.5,147.55,147.44,219.063]
[1740782566142,6.2895,147.56,147.48,20.0]
[1740782566348,6.2895,147.56,147.48,239.0]
[1740782566546,99.34964886,147.58,147.48,239.0]
[1740782566847,125.7693,147.61,147.52,20.0]
[1740782567028,114.22,147.61,147.52,239.0]
[1740782567850,114.22,147.61,147.53,5.4226]
[1740782568452,18.64964886,147.6,147.52,101.0]
[1740782568629,18.64964886,147.6,147.52,81.0]
[1740782569149,119.6397,147.61,147.52,86.4229]
[1740782569355,119.6397,147.61,147.52,224.4229]
[1740782569851,119.6397,147.61,147.53,0.063]
[1740782569852,114.22,147.61,147.53,0.063]
[1740782570054,114.22,147.61,147.53,237.71264886]
[1740782570237,0.03,147.62,147.56,20.0]
[1740782570435,0.03,147.62,147.56,239.0]
[1740782571162,0.03,147.62,147.57,5.4211]
[1740782571333,0.03,147.62,147.57,18.9739]
[1740782572249,0.03,147.62,147.57,5.4211]
[1740782573340,0.03,147.62,147.57,81.0]
[1740782574856,0.03,147.62,147.57,224.4211]
[1740782575039,0.03,147.62,147.58,18.64964886]
[1740782575843,0.03,147.62,147.58,237.64964886]
[1740782576355,0.03,147.62,147.58,219.0]
[1740782577847,0.03,147.62,147.61,20.0]
[1740782578667,0.03,147.62,147.58,219.0]
[1740782578840,0.03,147.62,147.58,81.0]
[1740782579763,0.03,147.62,147.58,219.0]
[1740782581143,0.03,147.62,147.58,224.4207]
[1740782582143,0.03,147.62,147.59,6.48]
[1740782582863,0.03,147.62,147.61,20.0]
[1740782583040,0.03,147.62,147.61,239.0]
[1740782583242,0.03,147.62,147.61,244.4196]
[1740782583968,0.03,147.62,147.61,219.0]
[1740782584654,0.03,147.62,147.61,224.4196]
[1740782593067,0.03,147.62,147.59,81.0]
[1740782593369,0.03,147.62,147.61,81.0]
[1740782594273,0.03,147.62,147.61,86.4196]
[1740782594648,0.03,147.62,147.61,224.4196]
[1740782597763,0.03,147.62,147.61,243.06924886]
[1740782597960,13.539,147.73,147.64,20.0]
[1740782598271,5.4156,147.72,147.64,239.0]
[1740782598471,5.4153,147.73,147.64,239.0]
[1740782598655,5.4153,147.73,147.64,219.0]
[1740782598857,20.0,147.7,147.64,219.0]
[1740782599057,5.4153,147.73,147.64,219.0]
[1740782599563,5.4153,147.73,147.65,11.9582]
[1740782600680,5.4153,147.73,147.65,230.9582]
[1740782605279,5.4153,147.73,147.65,234.34087521]
[1740782606779,18.9798,147.76,147.65,234.34087521]
[1740782608172,25.4456,147.73,147.65,234.34087521]
[1740782612885,0.03,147.73,147.65,234.34087521]
[1740782613389,20.03,147.73,147.65,234.34087521]
[1740782613684,0.03,147.73,147.65,234.34087521]
[1740782618287,0.03,147.73,147.65,228.92267521]
[1740782618494,0.03,147.73,147.66,5.4178]
[1740782619181,0.03,147.73,147.65,219.0]
[1740782619565,0.03,147.73,147.65,224.418]
[1740782620283,80.7,147.72,147.65,81.0]
[1740782620464,5.416,147.71,147.65,81.0]
[1740782621772,18.956,147.71,147.65,81.0]
[1740782622584,99.34964886,147.7,147.62,81.063]
[1740782622882,18.64964886,147.68,147.62,81.063]
[1740782623186,103.34964886,147.68,147.62,0.063]
[1740782623487,44.06854886,147.63,147.62,0.063]
[1740782623693,47.71864886,147.63,147.62,0.0001]
[1740782624414,45.71864886,147.63,147.62,0.0001]
[1740782625099,47.71864886,147.63,147.62,0.0001]
[1740782625392,47.71864886,147.63,147.59,0.063]
[1740782625393,20.0,147.6,147.59,0.063]
[1740782625780,25.42,147.6,147.59,0.063]
[1740782629295,44.06964886,147.6,147.59,0.063]
[1740782629497,46.06964886,147.6,147.59,0.063]
[1740782629796,18.64964886,147.55,147.53,0.063]
[1740782630003,99.34964886,147.54,147.53,0.063]
[1740782631093,18.64964886,147.53,147.47,0.063]
[1740782631306,99.34964886,147.53,147.47,0.063]
[1740782631609,5.4229,147.52,147.47,0.063]
[1740782633412,99.34964886,147.51,147.47,0.063]
[1740782633711,18.64964886,147.49,147.47,0.063]
[1740782633898,99.34964886,147.49,147.47,0.063]
[1740782634212,80.7,147.49,147.47,0.063]
[1740782636133,24.07404886,147.48,147.47,0.063]
[1740782640712,18.64964886,147.43,147.37,0.063]
[1740782640914,80.7,147.43,147.37,0.063]
[1740782641122,6.4,147.44,147.37,0.063]
[1740782641295,20.0,147.42,147.37,0.063]
[1740782641485,80.7,147.41,147.37,0.063]
[1740782641911,99.34964886,147.4,147.37,0.063]
[1740782642221,20.0,147.37,147.32,86.4762]
[1740782642593,20.0,147.37,147.32,81.0]
[1740782642797,5.4288,147.36,147.32,81.0]
[1740782643105,5.4288,147.36,147.28,5.4317]
[1740782643308,18.64964886,147.34,147.27,0.063]
[1740782643514,25.06964886,147.34,147.27,0.063]
[1740782643713,139.38964886,147.34,147.27,0.063]
[1740782644232,18.64964886,147.32,147.27,0.063]
[1740782644440,24.08034886,147.32,147.27,0.063]
[1740782646600,104.78034886,147.32,147.27,0.063]
[1740782647607,80.7,147.32,147.27,0.063]
[1740782647801,6.42,147.33,147.27,81.063]
[1740782648008,114.32,147.34,147.27,81.063]
[1740782649014,114.32,147.34,147.28,5.4318]
[1740782649327,24.07824886,147.37,147.28,5.4318]
[1740782649631,11.907,147.41,147.3,18.64964886]
[1740782649801,11.907,147.41,147.31,6.48]
[1740782650003,20.0,147.38,147.31,6.48]
[1740782650201,20.0,147.38,147.31,87.48]
[1740782650400,18.64964886,147.4,147.31,87.48]
[1740782651133,5.4277,147.39,147.32,5.4303]
[1740782651440,5.4277,147.39,147.33,6.5978]
[1740782655838,5.4577,147.39,147.33,6.5978]
[1740782656138,5.4577,147.39,147.33,87.5978]
[1740782660037,19.0271,147.39,147.33,81.0]
[1740782667042,5.4577,147.39,147.33,86.4298]
[1740782667237,5.4577,147.39,147.33,81.0]
[1740782669742,0.03,147.39,147.33,81.0]
[1740782673255,0.03,147.39,147.33,86.4298]
[1740782673957,0.03,147.39,147.33,81.0]
[1740782685860,18.67964886,147.39,147.33,81.0]
[1740782686036,18.67964886,147.39,147.31,0.063]
[1740782688257,18.64964886,147.37,147.31,0.063]
[1740782689364,5.4288,147.36,147.31,0.063]
[1740782689741,20.0,147.33,147.31,0.063]
[1740782690067,18.64964886,147.34,147.31,0.063]
[1740782690251,20.0,147.32,147.31,0.063]
[1740782691159,25.4303,147.32,147.31,0.063]
[1740782697358,5.4299,147.33,147.31,0.063]
[1740782700070,80.7,147.35,147.31,0.063]
[1740782700373,5.4296,147.34,147.31,0.063]
[1740782701363,120.92,147.36,147.31,0.063]
[1740782701671,5.4293,147.35,147.31,0.063]
[1740782702573,101.34964886,147.34,147.31,0.063]
[1740782703258,103.34964886,147.34,147.31,0.063]
[1740782703769,101.34964886,147.34,147.31,0.063]
[1740782704467,18.64964886,147.32,147.31,0.063]
[1740782706080,24.07994886,147.32,147.31,0.063]
[1740782706375,5.4303,147.32,147.31,0.063]
[1740782706583,24.07994886,147.32,147.31,0.063]
[1740782709056,18.64964886,147.32,147.31,0.063]
[1740782709381,24.07994886,147.32,147.31,0.063]
[1740782711156,86.13,147.33,147.31,0.063]
[1740782714879,80.7,147.33,147.31,0.063]
[1740782716992,0.03,147.35,147.31,81.063]
[1740782719084,0.03,147.35,147.32,7.9966]
[1740782721491,18.64964886,147.33,147.31,0.063]
[1740782723278,87.12,147.34,147.31,0.063]
[1740782723479,5.4299,147.33,147.31,0.063]
[1740782729003,80.7,147.32,147.31,0.063]
[1740782731102,86.1303,147.32,147.31,0.063]
[1740782731597,104.77994886,147.32,147.31,0.063]
[1740782731805,80.7,147.32,147.31,0.063]
[1740782731997,5.43,147.33,147.31,0.063]
[1740782733105,19.0323,147.35,147.31,0.063]
[1740782733807,18.64964886,147.34,147.31,0.063]
[1740782734805,5.4299,147.33,147.31,0.063]
[1740782737593,18.64964886,147.32,147.31,0.063]
[1740782738615,24.07994886,147.32,147.31,0.063]
[1740782745121,0.03,147.35,147.31,0.063]
[1740782745998,0.03,147.35,147.32,8.1471]
[1740782749197,0.03,147.35,147.32,232.5773]
[1740782751996,0.03,147.35,147.34,20.0]
[1740782752202,0.03,147.35,147.34,239.0]
[1740782752403,0.03,147.37,147.34,239.0]
[1740782752600,0.03,147.37,147.35,18.64964886]
[1740782753107,0.03,147.37,147.36,20.22784886]
[1740782753300,0.03,147.37,147.36,26.79674886]
[1740782753501,0.03,147.39,147.38,20.0]
[1740782753701,0.03,147.39,147.38,239.0]
[1740782753900,0.03,147.39,147.38,244.4281]
[1740782756116,0.03,147.39,147.38,263.07774886]
[1740782757718,0.03,147.39,147.38,266.50113905]
[1740782758826,114.44,147.44,147.38,128.50113905]
[1740782759032,114.44,147.44,147.39,18.64964886]
[1740782759204,5.4252,147.46,147.39,18.64964886]
[1740782759554,5.4252,147.46,147.38,109.85149019]
[1740782759901,18.9855,147.48,147.38,109.85149019]
[1740782760201,18.9855,147.48,147.38,247.85149019]
[1740782761121,5.4244,147.48,147.38,104.42339019]
[1740782761323,0.03,147.46,147.38,116.15139019]
[1740782761537,0.03,147.46,147.38,101.0]
[1740782761715,18.67964886,147.46,147.38,101.0]
[1740782762810,133.03964886,147.46,147.38,101.0]
[1740782763012,18.64964886,147.42,147.36,8.1471]
[1740782763325,18.64964886,147.4,147.34,81.0]
[1740782764220,18.64964886,147.38,147.32,88.7889]
[1740782765514,5.4285,147.37,147.32,88.7889]
[1740782769236,5.4285,147.37,147.32,81.0]
[1740782769430,80.7,147.41,147.35,20.0]
[1740782769617,82.2549,147.45,147.35,247.2341]
[1740782769830,120.8253,147.46,147.36,37.65064886]
[1740782770019,114.39,147.46,147.36,37.65064886]
[1740782770639,114.39,147.46,147.36,19.001]
[1740782771012,119.8152,147.46,147.36,19.001]
[1740782771215,99.34964886,147.45,147.36,86.4288]
[1740782771522,99.34964886,147.45,147.36,81.0]
[1740782771722,101.34964886,147.45,147.36,81.0]
[1740782772534,18.64964886,147.43,147.35,25.4291]
[1740782772736,24.98964886,147.43,147.35,25.4291]
[1740782773230,24.98964886,147.43,147.35,5.4291]
[1740782773442,6.34,147.43,147.35,86.4291]
[1740782775146,6.34,147.43,147.35,238.0022]
[1740782776836,20.0,147.43,147.35,238.0022]
[1740782777411,119.8154,147.46,147.35,238.0022]
[1740782777615,119.8154,147.46,147.38,20.0]
[1740782777822,119.8154,147.46,147.38,101.0]
[1740782778540,119.8154,147.46,147.39,5.4277]